bitfinex-derivatives/quotes_ETHF0:USTF0_20250702
["timestamp","ask_amount","ask_price","bid_price","bid_amount"]
[1751481082793,1.71323181,2569.0,2568.9,3.40523]
[1751481082989,37.65123181,2569.0,2568.9,3.40523]
[1751481084694,36.87313181,2569.0,2568.9,3.40523]
[1751481084993,36.87313181,2569.0,2568.9,8.40523]
[1751481085501,0.93513181,2569.0,2568.9,3.40523]
[1751481085788,2.30640083,2569.5,2569.0,1.94522]
[1751481085984,39.02337083,2569.5,2569.4,7.81603798]
[1751481086185,2.30640083,2569.5,2569.4,7.81603798]
[1751481086388,38.24540083,2569.5,2569.4,7.81603798]
[1751481086795,38.24540083,2569.5,2569.4,9.11473798]
[1751481087294,3.08434083,2569.6,2569.5,0.77795]
[1751481087501,38.23640083,2569.6,2569.5,2.77335]
[1751481087689,2.30640083,2569.7,2569.6,0.77792]
[1751481087997,39.00831083,2569.7,2569.6,0.77792]
[1751481088696,3.08431083,2569.7,2569.6,0.77792]
[1751481088897,38.22940083,2569.7,2569.6,0.77792]
[1751481089094,2.30640083,2569.7,2569.6,0.77792]
[1751481089296,2.30640083,2569.8,2569.7,0.77789]
[1751481089592,38.22940083,2569.9,2569.8,0.77786]
[1751481089794,38.22940083,2569.9,2569.8,2.81926]
[1751481089990,2.30640083,2569.9,2569.8,2.81926]
[1751481090189,38.22940083,2569.9,2569.8,2.81926]
[1751481090591,2.30640083,2569.9,2569.8,2.81926]
[1751481091797,0.77792,2569.6,2569.5,0.6594]
[1751481092093,0.77792,2569.6,2569.5,2.08711]
[1751481092995,0.7779,2569.7,2569.6,0.77792]
[1751481093293,2.30640083,2569.8,2569.7,0.77789]
[1751481093294,3.08428083,2569.8,2569.7,0.77789]
[1751481093600,38.23240083,2569.8,2569.7,0.77789]
[1751481094196,39.01026083,2569.8,2569.7,0.77789]
[1751481094396,36.70386,2569.8,2569.7,0.77789]
[1751481095198,35.926,2569.8,2569.7,0.77789]
[1751481095400,0.77785,2569.9,2569.8,0.77786]
[1751481095599,36.69685,2569.9,2569.8,0.77786]
[1751481096400,35.919,2569.9,2569.8,0.77786]
[1751481097101,36.69683,2569.9,2569.8,0.77786]
[1751481097703,36.69683,2569.9,2569.7,7.81592798]
[1751481097897,0.93144887,2569.8,2569.7,7.81592798]
[1751481098101,1.70930887,2569.8,2569.7,7.81592798]
[1751481098302,0.93144887,2569.8,2569.7,7.81592798]
[1751481101308,36.84844887,2569.8,2569.7,7.81592798]
[1751481101509,36.84803878,2569.8,2569.7,7.81592798]
[1751481102205,0.93103878,2569.8,2569.7,7.81592798]
[1751481102405,36.84803878,2569.8,2569.7,7.81592798]
[1751481102809,0.93103878,2569.8,2569.7,7.81592798]
[1751481103010,36.84703878,2569.8,2569.7,7.81592798]
[1751481103409,0.93103878,2569.8,2569.7,7.81592798]
[1751481105709,1.70889878,2569.8,2569.7,7.81592798]
[1751481106211,0.93103878,2569.8,2569.7,7.81592798]
[1751481109013,9.12231578,2569.8,2569.7,7.81592798]
[1751481112014,9.12231578,2569.8,2569.7,4.16737152]
[1751481112212,8.191277,2569.8,2569.7,4.16737152]
[1751481113116,8.191277,2569.8,2569.7,0.77787]
[1751481113417,8.191277,2569.8,2569.7,4.16737152]
[1751481114920,0.00583351,2570.0,2569.9,0.77783]
[1751481115216,0.9371852,2570.0,2569.9,7.55683304]
[1751481115416,0.00583351,2570.0,2569.9,8.21003304]
[1751481115817,0.00583351,2570.0,2569.9,4.82053152]
[1751481116012,0.9372783,2570.0,2569.9,4.82053152]
[1751481117618,56.002,2570.5,2570.4,0.77768]
[1751481117816,0.77763,2570.6,2570.5,0.77765]
[1751481118012,36.68563,2570.6,2570.5,0.77765]
[1751481119218,0.77765,2570.5,2570.4,4.16716152]
[1751481119418,2.12445,2570.5,2570.4,4.16716152]
[1751481120617,35.908,2570.6,2570.4,3.38950152]
[1751481120821,36.68564,2570.6,2570.5,0.77765]
[1751481122417,35.908,2570.6,2570.5,0.77765]
[1751481122821,36.68562,2570.6,2570.5,0.77765]
[1751481124521,36.68562,2570.6,2570.4,4.16716152]
[1751481124723,36.68562,2570.6,2570.5,0.77765]
[1751481125322,36.68562,2570.6,2570.4,4.16716152]
[1751481125623,36.68564,2570.6,2570.5,0.77765]
[1751481125821,35.908,2570.6,2570.5,0.77765]
[1751481126222,36.68562,2570.6,2570.5,0.77765]
[1751481126616,0.77765,2570.5,2570.4,4.16716152]
[1751481126819,36.68564,2570.6,2570.4,4.16716152]
[1751481127016,36.68564,2570.6,2570.5,0.77765]
[1751481128027,36.68563,2570.6,2570.5,0.77765]
[1751481128522,35.908,2570.6,2570.5,0.77765]
[1751481128724,36.68562,2570.6,2570.5,0.77765]
[1751481129625,38.77308694,2570.6,2570.2,3.38950152]
[1751481129820,2.29840694,2570.5,2570.2,3.38950152]
[1751481130020,3.07609694,2570.4,2570.3,0.7777]
[1751481131930,0.77771,2570.3,2570.2,3.38950152]
[1751481132127,38.87110694,2570.3,2570.1,1.3711]
[1751481132327,0.92100694,2570.2,2570.1,2.14887]
[1751481132629,38.72782,2570.3,2570.2,0.77774]
[1751481132927,38.87144513,2570.3,2570.2,0.77774]
[1751481133224,0.92134513,2570.3,2570.2,0.77774]
[1751481133526,36.81634513,2570.3,2570.2,0.77774]
[1751481133726,36.81634513,2570.3,2570.2,2.19074]
[1751481134422,8.191277,2570.5,2570.4,0.77768]
[1751481134629,44.086277,2570.5,2570.4,4.16718152]
[1751481134828,8.191277,2570.5,2570.4,4.16718152]
[1751481135028,44.862927,2570.5,2570.4,4.16718152]
[1751481136228,44.085277,2570.5,2570.4,4.16718152]
[1751481137227,8.191277,2570.5,2570.4,4.16718152]
[1751481137528,44.083277,2570.5,2570.4,4.16718152]
[1751481140026,44.860927,2570.5,2570.4,4.16718152]
[1751481140227,44.083277,2570.5,2570.4,4.16718152]
[1751481140933,8.191277,2570.5,2570.4,4.16718152]
[1751481141133,44.082277,2570.5,2570.4,4.16718152]
[1751481141328,44.080277,2570.5,2570.4,4.16718152]
[1751481142431,8.191277,2570.5,2570.4,4.16718152]
[1751481146431,9.10987275,2570.5,2570.4,4.16718152]
[1751481146934,9.88752275,2570.5,2570.4,4.16718152]
[1751481147133,9.10987275,2570.5,2570.4,4.16718152]
[1751481147934,9.88752275,2570.5,2570.4,0.77768]
[1751481148327,9.88752275,2570.5,2570.4,4.16718152]
[1751481149133,9.10987275,2570.5,2570.4,0.77768]
[1751481149331,10.43437275,2570.5,2570.4,0.77768]
[1751481149735,9.10987275,2570.5,2570.4,4.16718152]
[1751481150336,44.99187275,2570.5,2570.4,4.16718152]
[1751481154541,44.98987275,2570.5,2570.4,4.16718152]
[1751481155344,2.30640083,2570.9,2570.8,0.77756]
[1751481155545,2.30640083,2571.0,2570.9,0.77753]
[1751481155845,2.30640083,2571.0,2570.9,7.55653304]
[1751481156045,35.878,2571.2,2571.1,0.77747]
[1751481156242,14.98627444,2571.6,2571.5,0.77735]
[1751481156442,14.20893444,2571.6,2571.5,4.16685152]
[1751481156745,47.0,2571.6,2571.5,4.16685152]
[1751481156946,46.997,2571.6,2571.5,4.16685152]
[1751481157445,11.122,2571.6,2571.5,4.16685152]
[1751481157746,3.08693444,2571.8,2571.7,0.77729]
[1751481157939,3.08693444,2571.8,2571.7,4.16679152]
[1751481158140,35.875,2571.8,2571.7,4.16679152]
[1751481158339,35.874,2571.8,2571.7,4.16679152]
[1751481159737,36.65125,2571.8,2571.7,4.16679152]
[1751481160144,35.874,2571.8,2571.7,4.16679152]
[1751481160444,36.65125,2571.8,2571.7,4.16678152]
[1751481160638,35.874,2571.8,2571.4,1.41766]
[1751481160845,0.77738,2571.4,2571.3,0.00583351]
[1751481161043,36.64538,2571.4,2571.3,0.00583351]
[1751481162347,0.7775,2571.0,2570.9,1.53781776]
[1751481162549,36.6445,2571.0,2570.9,1.53781776]
[1751481162743,0.77753,2570.9,2570.8,1.44295]
[1751481162945,0.77756,2570.8,2570.7,1.53781776]
[1751481163543,0.77756,2570.8,2570.6,5.70490928]
[1751481163738,2.13946,2570.8,2570.6,4.16709152]
[1751481163947,2.13946,2570.8,2570.7,0.77759]
[1751481164147,1.3619,2570.8,2570.7,0.77759]
[1751481164547,0.77765,2570.5,2570.4,0.7067]
[1751481164750,8.968957,2570.4,2570.3,0.6714]
[1751481165048,8.191277,2570.4,2570.0,1.48448]
[1751481165347,0.77778,2570.1,2569.9,0.77782]
[1751481165550,36.6428,2570.0,2569.9,1.53781776]
[1751481165744,35.865,2570.0,2569.8,0.6714]
[1751481166049,36.64281,2570.0,2569.8,1.44925]
[1751481166850,35.865,2570.0,2569.9,0.77783]
[1751481167456,36.6428,2570.0,2569.8,1.44924]
[1751481169251,35.865,2570.0,2569.8,1.44924]
[1751481169452,36.64282,2570.0,2569.8,1.44924]
[1751481169853,36.64282,2570.0,2569.8,0.77785]
[1751481170053,35.865,2570.0,2569.9,0.77783]
[1751481170553,35.865,2570.0,2569.9,7.82616508]
[1751481170954,35.865,2570.0,2569.5,0.6628]
[1751481171157,0.77785,2569.9,2569.7,0.77788]
[1751481171654,37.2345,2570.0,2569.1,1.94518]
[1751481171957,0.77794,2569.6,2569.4,0.77797]
[1751481172151,36.64894,2569.6,2569.4,0.77797]
[1751481172352,35.871,2569.6,2569.5,0.77795]
[1751481173857,0.77786,2569.8,2569.7,0.77789]
[1751481174157,36.64886,2569.8,2569.7,0.77789]
[1751481174561,0.77793,2569.7,2569.6,0.7779]
[1751481176463,36.64888,2569.8,2569.3,10.34015508]
[1751481176663,0.77789,2569.7,2569.6,0.7779]
[1751481177862,0.77789,2569.7,2569.6,0.77792]
[1751481178359,35.871,2569.8,2569.3,10.34015508]
[1751481178360,36.64888,2569.8,2569.7,0.77789]
[1751481179660,0.7779,2569.7,2569.6,0.7779]
[1751481179964,37.81567,2569.8,2569.4,0.77795]
[1751481180263,0.77794,2569.6,2569.5,0.77795]
[1751481180764,2.16071,2569.7,2569.6,0.77792]
[1751481181361,0.77793,2569.6,2569.5,0.77793]
[1751481182064,0.77794,2569.6,2569.5,0.77794]
[1751481182363,0.77795,2569.6,2569.5,0.77795]
[1751481182565,0.77796,2569.5,2569.4,0.77796]
[1751481182765,0.77801,2569.3,2569.2,1.44083]
[1751481183361,35.875,2569.4,2569.3,0.77801]
[1751481183566,11.119,2569.8,2569.7,0.77789]
[1751481183762,46.995,2569.8,2569.7,0.77789]
[1751481184068,0.06773584,2570.0,2569.9,0.77783]
[1751481184263,47.84053584,2570.0,2569.9,0.77783]
[1751481184464,0.77784,2569.9,2569.8,0.77784]
[1751481184863,49.19914584,2570.0,2569.9,0.77783]
[1751481185667,11.96454584,2570.0,2569.9,0.77783]
[1751481185967,47.83954584,2570.0,2569.9,0.77783]
[1751481186169,0.77784,2569.9,2569.8,0.77784]
[1751481188070,0.77786,2569.8,2569.7,4.16878738]
[1751481188269,0.77789,2569.7,2569.6,1.4648]
[1751481188569,0.77794,2569.6,2569.5,0.77794]
[1751481188760,3.39091738,2569.6,2569.2,0.6628]
[1751481188965,0.77801,2569.3,2569.2,1.44082]
[1751481189167,8.191277,2569.6,2569.2,2.60786]
[1751481189362,8.191277,2569.6,2569.5,4.16886738]
[1751481189568,44.065277,2569.6,2569.5,4.16886738]
[1751481190166,44.843197,2569.6,2569.5,4.16886738]
[1751481190465,44.065277,2569.6,2569.5,4.16886738]
[1751481190866,8.191277,2569.6,2569.5,4.16886738]
[1751481191170,44.065277,2569.6,2569.5,4.16886738]
[1751481191471,44.065277,2569.6,2569.5,0.77795]
[1751481191472,44.843197,2569.6,2569.5,0.77795]
[1751481191672,44.065277,2569.6,2569.5,4.16886738]
[1751481192370,8.969197,2569.6,2569.5,4.16886738]
[1751481192563,44.064277,2569.6,2569.5,4.16886738]
[1751481192972,44.065277,2569.6,2569.5,4.16886738]
[1751481193171,44.064277,2569.6,2569.5,4.16886738]
[1751481193372,8.191277,2569.6,2569.5,4.16886738]
[1751481193565,7.128477,2569.6,2569.5,4.16886738]
[1751481195171,56.033,2570.1,2570.0,0.7778]
[1751481195364,0.77777,2570.2,2570.1,0.77777]
[1751481195672,36.65077,2570.2,2570.1,0.77777]
[1751481196066,0.77777,2570.1,2570.0,4.16869738]
[1751481196270,0.77783,2570.0,2569.9,0.7778]
[1751481197769,0.77788,2569.8,2569.7,0.77786]
[1751481198072,0.77789,2569.7,2569.6,1.4618]
[1751481198774,36.64888,2569.8,2569.7,0.77789]
[1751481199163,0.77789,2569.7,2569.6,1.4618]
[1751481199674,0.77789,2569.7,2569.6,0.6839]
[1751481199873,0.77789,2569.7,2569.6,1.46182]
[1751481200770,36.64887,2569.8,2569.7,0.77789]
[1751481201076,35.871,2569.8,2569.7,0.77789]
[1751481202072,36.64886,2569.8,2569.7,0.77789]
[1751481202573,35.871,2569.8,2569.7,0.77789]
[1751481202768,0.77782,2570.0,2569.8,1.94466]
[1751481202769,35.87,2570.0,2569.8,1.94466]
[1751481203077,35.87,2570.0,2569.9,0.77783]
[1751481203479,3.09499616,2570.3,2570.2,0.77774]
[1751481203772,13.43326616,2570.5,2570.1,3.39091738]
[1751481203981,11.89366,2570.5,2570.4,4.16859738]
[1751481204169,47.76266,2570.5,2570.4,0.77768]
[1751481204477,46.985,2570.5,2570.4,0.77768]
[1751481204677,11.116,2570.5,2570.4,0.77768]
[1751481204878,47.75865,2570.5,2570.4,0.77768]
[1751481205177,47.75865,2570.5,2570.0,0.6773]
[1751481205178,0.77773,2570.3,2570.0,0.6773]
[1751481205373,0.77773,2570.3,2570.2,0.77774]
[1751481205968,49.10787,2570.5,2570.4,0.77768]
[1751481206170,46.981,2570.5,2570.4,0.77768]
[1751481206680,0.77764,2570.6,2570.5,0.77765]
[1751481206880,36.64264,2570.6,2570.5,0.77765]
[1751481208579,0.77765,2570.5,2570.4,1.43366]
[1751481208976,36.64264,2570.6,2570.5,0.77765]
[1751481209175,0.77765,2570.5,2570.4,1.43366]
[1751481210383,36.64264,2570.6,2570.5,0.77765]
[1751481210885,0.77765,2570.5,2570.4,1.43366]
[1751481211982,36.64264,2570.6,2570.5,0.77765]
[1751481212186,0.77765,2570.5,2570.4,1.43366]
[1751481212387,0.77765,2570.5,2570.4,0.656]
[1751481212881,0.77765,2570.5,2570.4,1.43368]
[1751481213088,35.86,2570.5,2570.4,1.43368]
[1751481213284,36.63765,2570.5,2570.4,1.43368]
[1751481213484,35.86,2570.5,2570.4,1.43368]
[1751481214083,36.63765,2570.5,2570.4,1.43368]
[1751481214285,0.77764,2570.6,2570.5,0.77764]
[1751481214487,36.63564,2570.6,2570.5,0.77764]
[1751481215187,36.63564,2570.6,2570.4,0.656]
[1751481215188,0.77765,2570.5,2570.4,1.43365]
[1751481215885,11.114,2570.8,2570.4,0.656]
[1751481216084,0.7776,2570.7,2570.6,0.77759]
[1751481216287,36.6346,2570.7,2570.6,0.77759]
[1751481216485,0.77763,2570.6,2570.5,0.77762]
[1751481216689,36.63461,2570.7,2570.6,0.77762]
[1751481217085,0.77764,2570.6,2570.5,0.77763]
[1751481217589,36.63461,2570.7,2570.6,0.77762]
[1751481218684,11.114,2570.8,2570.7,0.77759]
[1751481218886,47.74758,2570.8,2570.7,0.77759]
[1751481219885,11.89158,2570.8,2570.7,0.77759]
[1751481220091,47.74758,2570.8,2570.7,0.77759]
[1751481222890,0.7776,2570.7,2570.6,0.77759]
[1751481223485,56.7105,2570.9,2570.5,1.94413]
[1751481223690,56.038,2570.9,2570.8,4.16847738]
[1751481223887,91.889,2570.9,2570.8,4.16847738]
[1751481224092,0.77748,2571.1,2571.0,0.7775]
[1751481224393,11.109,2571.2,2571.1,0.77747]
[1751481224594,46.96,2571.2,2571.1,0.77747]
[1751481224897,0.77736,2571.5,2571.4,0.77736]
[1751481225387,35.85,2571.5,2571.1,1.3782]
[1751481225585,0.7774,2571.4,2571.3,0.6534]
[1751481225793,1.94353,2571.3,2570.5,1.94408]
[1751481226090,0.77765,2570.6,2570.5,0.77764]
[1751481226300,36.62465,2570.6,2570.5,0.77764]
[1751481227092,36.62465,2570.6,2570.4,1.42046]
[1751481227297,35.847,2570.6,2570.5,0.77765]
[1751481228093,35.847,2570.6,2570.5,2.05675]
[1751481230500,0.77764,2570.6,2570.4,4.03371738]
[1751481230802,0.77761,2570.7,2570.6,0.7776]
[1751481231997,35.844,2570.7,2570.4,0.6428]
[1751481232197,0.77765,2570.5,2570.4,1.42046]
[1751481232398,8.968927,2570.5,2570.4,1.42046]
[1751481236095,8.968927,2570.5,2570.4,0.77766]
[1751481236504,8.191277,2570.5,2570.4,0.77766]
[1751481236900,8.968927,2570.5,2570.4,0.77766]
[1751481237098,8.191277,2570.5,2570.2,0.6925]
[1751481237402,41.17714738,2570.4,2569.8,4.81115776]
[1751481237605,0.77777,2570.2,2569.9,0.6682]
[1751481237900,4.16871738,2570.0,2569.9,0.6682]
[1751481238108,0.77786,2569.8,2569.7,1.53781776]
[1751481238406,35.842,2569.8,2569.5,2.31575776]
[1751481238702,0.77791,2569.7,2569.5,2.31575776]
[1751481238900,35.842,2569.8,2569.7,0.77789]
[1751481239101,36.61989,2569.8,2569.6,0.77791]
[1751481239307,35.842,2569.8,2569.7,0.77789]
[1751481240105,36.61986,2569.8,2569.7,0.77789]
[1751481240404,0.77789,2569.7,2569.6,0.7779]
[1751481240606,35.842,2569.8,2569.7,0.77789]
[1751481241204,35.842,2569.8,2569.3,1.53781776]
[1751481241508,35.842,2569.8,2569.5,0.77793]
[1751481241706,0.77791,2569.7,2569.5,0.77793]
[1751481242007,36.61988,2569.8,2569.6,0.77792]
[1751481242207,36.61988,2569.8,2569.7,0.77789]
[1751481242909,0.7779,2569.7,2569.6,0.77791]
[1751481243103,0.77792,2569.6,2569.5,0.77793]
[1751481243504,35.842,2569.8,2569.5,0.77793]
[1751481243710,0.77791,2569.7,2569.6,0.77792]
[1751481244010,36.61988,2569.8,2569.6,0.77792]
[1751481244216,35.842,2569.8,2569.7,0.77789]
[1751481244611,36.61986,2569.8,2569.7,0.77789]
[1751481245012,35.842,2569.8,2569.7,0.77789]
[1751481245208,35.842,2569.8,2569.3,3.30542]
[1751481245512,0.7779,2569.7,2569.6,0.77792]
[1751481246008,44.033277,2569.8,2569.6,0.6609]
[1751481246312,44.811147,2569.8,2569.7,0.77789]
[1751481246512,0.77789,2569.7,2569.6,0.6609]
[1751481249812,44.811167,2569.8,2569.7,0.77789]
[1751481250315,0.77789,2569.7,2569.6,0.6609]
[1751481251814,0.77789,2569.7,2569.6,1.43882]
[1751481252015,0.77789,2569.7,2569.6,0.6609]
[1751481253211,0.77789,2569.7,2569.6,1.43882]
[1751481253611,44.811157,2569.8,2569.7,0.77789]
[1751481253811,0.77789,2569.7,2569.6,0.6609]
[1751481254414,0.77789,2569.7,2569.6,1.43882]
[1751481254613,0.77789,2569.7,2569.6,0.6609]
[1751481255413,0.77789,2569.7,2569.6,1.43882]
[1751481255816,36.62389,2569.7,2569.6,1.43882]
[1751481256311,36.62389,2569.7,2569.6,0.6609]
[1751481257216,36.62389,2569.7,2569.6,1.43882]
[1751481257418,36.62389,2569.7,2569.6,0.6609]
[1751481257617,35.845,2569.7,2569.6,0.6609]
[1751481257815,35.845,2569.7,2569.6,1.4388]
[1751481258511,36.62289,2569.7,2569.6,1.4388]
[1751481259519,35.845,2569.7,2569.6,1.4388]
[1751481259917,35.845,2569.7,2569.6,4.82993566]
[1751481261314,36.62289,2569.7,2569.6,4.82993566]
[1751481261513,35.845,2569.7,2569.6,4.82993566]
[1751481261716,36.62289,2569.7,2569.6,4.82993566]
[1751481262218,35.845,2569.7,2569.6,4.82993566]
[1751481262420,36.62289,2569.7,2569.6,4.82993566]
[1751481263220,36.62289,2569.7,2569.6,1.4388]
[1751481263816,36.62289,2569.7,2569.1,2.59002]
[1751481263817,37.78973,2569.7,2569.1,0.6449]
[1751481264021,0.77803,2569.3,2569.2,0.77803]
[1751481264221,35.84,2569.3,2569.2,0.77804]
[1751481264521,8.191277,2569.8,2569.3,1.94504]
[1751481264721,8.191277,2569.8,2569.7,0.77789]
[1751481264921,44.809137,2569.8,2569.7,0.77789]
[1751481265120,44.809137,2569.8,2569.7,1.46699]
[1751481265319,44.031277,2569.8,2569.4,0.77797]
[1751481265522,0.77801,2569.3,2569.2,1.42952]
[1751481265723,35.84,2569.3,2569.2,1.42952]
[1751481266323,35.84,2569.3,2569.2,4.82065566]
[1751481266822,35.84,2569.3,2569.2,6.16025566]
[1751481268720,1.3217,2569.7,2569.2,7.32730566]
[1751481268921,8.191277,2569.8,2569.5,3.39113566]
[1751481269121,8.191277,2569.8,2569.7,4.16902566]
[1751481271020,8.191277,2569.8,2569.7,9.16902566]
[1751481272923,7.3115392,2569.8,2569.7,9.16902566]
[1751481273422,6.2487392,2569.8,2569.7,10.70684342]
[1751481273629,67.7916,2570.7,2569.7,13.32008908]
[1751481273828,68.56921,2570.7,2570.6,0.77762]
[1751481274328,104.40121,2570.7,2570.6,0.77762]
[1751481274529,0.77765,2570.6,2570.5,0.77762]
[1751481276330,104.4012,2570.7,2570.6,0.77762]
[1751481276533,56.6846,2570.7,2570.6,0.77762]
[1751481276833,93.29419,2570.7,2570.6,0.77762]
[1751481277635,92.5166,2570.7,2570.6,0.77762]
[1751481278336,93.29419,2570.7,2570.6,0.77762]
[1751481278536,92.5166,2570.7,2570.6,0.77762]
[1751481278939,0.6666,2570.7,2570.6,0.77762]
[1751481279135,12.54932,2571.0,2570.9,0.77753]
[1751481279335,0.77753,2570.9,2570.8,0.77753]
[1751481280140,49.06591,2571.0,2570.9,0.77753]
[1751481280434,2.13291,2571.0,2570.9,0.77753]
[1751481280734,36.5156,2571.0,2570.9,4.16866566]
[1751481281843,0.6896,2571.0,2570.9,4.16866566]
[1751481282044,35.824,2571.0,2570.9,3.39113566]
[1751481282239,0.6862,2571.2,2571.1,0.77747]
[1751481282545,36.5102,2571.2,2571.1,4.16860566]
[1751481282940,0.6862,2571.2,2571.1,4.16860566]
[1751481283136,36.5062,2571.2,2571.1,4.16860566]
[1751481283341,36.5062,2571.2,2571.1,0.77747]
[1751481283543,37.28364,2571.2,2571.1,0.77747]
[1751481283746,36.5062,2571.2,2571.1,0.77747]
[1751481284238,0.6862,2571.2,2571.1,0.77747]
[1751481284541,37.28364,2571.2,2571.1,0.77747]
[1751481284941,36.5062,2571.2,2571.1,0.77747]
[1751481286546,0.695,2571.4,2571.3,0.77741]
[1751481286745,36.4911,2571.4,2571.3,4.16854566]
[1751481287147,0.6761,2571.4,2571.3,4.16854566]
[1751481287343,11.098,2571.6,2571.5,0.77735]
[1751481287550,46.913,2571.6,2571.5,4.16848566]
[1751481287943,46.912,2571.6,2571.5,4.16848566]
[1751481288144,47.68932,2571.6,2571.5,4.16848566]
[1751481288840,46.912,2571.6,2571.5,4.16848566]
[1751481289044,46.908,2571.6,2571.5,4.16848566]
[1751481289349,46.907,2571.6,2571.5,4.16848566]
[1751481289950,2.74094,2571.9,2571.8,0.77725]
[1751481290145,38.54994,2571.9,2571.8,0.77725]
[1751481290345,0.77725,2571.8,2571.7,4.16840566]
[1751481291847,0.77725,2571.8,2571.7,0.77729]
[1751481292148,2.07585,2571.8,2571.7,0.77729]
[1751481292644,1.2986,2571.8,2571.7,0.77729]
[1751481293348,2.07586,2571.8,2571.7,0.77729]
[1751481293544,1.2986,2571.8,2571.5,3.39113566]
[1751481293749,35.804,2571.7,2571.5,3.39113566]
[1751481293946,36.58129,2571.7,2571.6,0.77732]
[1751481294148,35.804,2571.7,2571.6,0.77732]
[1751481294348,36.58129,2571.7,2571.6,0.77732]
[1751481294549,0.77732,2571.6,2571.5,4.16847566]
[1751481296149,36.58131,2571.7,2571.6,0.77732]
[1751481296353,35.804,2571.7,2571.6,0.77732]
[1751481296651,36.58129,2571.7,2571.6,0.77732]
[1751481298359,0.77732,2571.6,2571.5,3.39113566]
[1751481298556,0.77732,2571.6,2571.5,4.16847566]
[1751481299059,36.5813,2571.7,2571.6,0.77732]
[1751481300561,0.77732,2571.6,2571.5,0.77734]
[1751481300759,0.77744,2571.2,2571.1,0.77744]
[1751481301067,35.795,2571.2,2571.1,0.77744]
[1751481301564,0.77752,2571.0,2570.9,0.77752]
[1751481301961,0.77753,2570.9,2570.8,1.44585]
[1751481302155,0.77756,2570.8,2570.7,0.77757]
[1751481302357,39.18413566,2570.9,2570.4,0.6553]
[1751481302563,39.18413566,2570.9,2570.1,1.53781776]
[1751481302564,4.06913566,2570.7,2570.1,1.53781776]
[1751481302755,0.77767,2570.5,2570.1,3.39113566]
[1751481302955,0.77768,2570.4,2570.2,1.48393]
[1751481303152,36.56971,2570.3,2570.1,0.77775]
[1751481303357,0.77783,2569.9,2569.8,1.53781776]
[1751481303561,35.792,2569.9,2569.8,2.31567776]
[1751481303757,35.792,2569.9,2569.8,0.77786]
[1751481304061,0.678,2570.3,2569.7,3.39113566]
[1751481304266,0.77777,2570.1,2570.0,3.39113566]
[1751481304465,0.78360351,2570.1,2570.0,3.39113566]
[1751481304764,0.00583351,2570.1,2570.0,0.7778]
[1751481305259,0.00583351,2570.1,2570.0,4.16893566]
[1751481305564,35.80183351,2570.1,2570.0,4.16893566]
[1751481305961,0.00583351,2570.1,2570.0,4.16893566]
[1751481306169,0.00583351,2570.1,2570.0,12.56007132]
[1751481306466,0.00583351,2570.1,2570.0,9.16893566]
[1751481307567,0.00583351,2570.1,2570.0,11.21683566]
[1751481308268,0.00583351,2570.1,2570.0,6.21683566]
[1751481309061,0.00583351,2570.1,2570.0,14.60797132]
[1751481309267,36.57561,2570.7,2570.6,0.77761]
[1751481309469,35.798,2570.7,2570.1,5.33556566]
[1751481309665,0.77763,2570.6,2570.5,0.77763]
[1751481309864,37.98331,2570.7,2570.6,0.77762]
[1751481310467,0.77763,2570.6,2570.5,0.77763]
[1751481310666,37.98331,2570.7,2570.6,0.77762]
[1751481311270,36.57561,2570.7,2570.6,0.77762]
[1751481311472,35.798,2570.7,2570.6,0.77762]
[1751481314977,36.57559,2570.7,2570.6,0.77762]
[1751481316674,37.74201,2570.7,2570.4,0.00583351]
[1751481316875,0.77765,2570.6,2570.5,0.77763]
[1751481317674,36.57561,2570.7,2570.6,0.77762]
[1751481320378,0.77764,2570.6,2570.5,0.77763]
[1751481320679,36.57561,2570.7,2570.6,0.77762]
[1751481320979,35.798,2570.7,2570.6,0.77762]
[1751481321180,36.57559,2570.7,2570.6,0.77762]
[1751481321678,35.798,2570.7,2570.6,0.77762]
[1751481321873,36.57559,2570.7,2570.6,0.77762]
[1751481322279,0.77764,2570.6,2570.5,0.77762]
[1751481322578,36.57561,2570.7,2570.6,0.77762]
[1751481322979,35.798,2570.7,2570.6,0.77762]
[1751481323880,36.57559,2570.7,2570.6,0.77762]
[1751481324577,36.57559,2570.7,2570.5,0.77764]
[1751481324778,0.77759,2570.7,2570.5,0.77764]
[1751481324979,35.793,2570.6,2570.5,0.77764]
[1751481325381,36.57062,2570.6,2570.5,0.77764]
[1751481325679,0.77765,2570.5,2570.4,4.17462917]
[1751481326583,2.58155,2570.8,2570.7,0.77756]
[1751481326584,0.7776,2570.8,2570.7,0.77756]
[1751481326781,0.77763,2570.7,2570.6,0.7776]
[1751481327280,36.56963,2570.7,2570.6,0.7776]
[1751481327877,36.56963,2570.7,2570.6,4.16873566]
[1751481328078,0.77763,2570.7,2570.6,4.16873566]
[1751481328277,0.77757,2570.8,2570.7,0.77754]
[1751481328477,36.56857,2570.8,2570.7,3.40644]
[1751481329383,36.56857,2570.8,2570.7,2.12104]
[1751481330588,0.77765,2570.5,2570.4,0.78349351]
[1751481330781,0.77765,2570.5,2570.4,0.71353351]
[1751481330977,39.95778566,2570.5,2570.4,0.00583351]
[1751481331381,39.95778566,2570.5,2569.9,0.77782]
[1751481331382,0.7778,2570.0,2569.9,0.77782]
[1751481331583,0.77783,2569.9,2569.8,2.90071776]
[1751481331882,0.77795,2569.5,2569.4,1.53781776]
[1751481332080,0.77795,2569.5,2569.4,2.31579776]
[1751481332081,36.56595,2569.5,2569.4,2.31579776]
[1751481332281,36.56595,2569.5,2569.3,2.31580776]
[1751481332582,0.77798,2569.4,2569.2,1.53781776]
[1751481332785,35.788,2569.5,2569.2,2.31584776]